bitfinex/quotes_SOLUSD_20250216
["timestamp","ask_amount","ask_price","bid_price","bid_amount"]
[1739701488209,13.34786277,193.57,193.55,0.03]
[1739701488411,8.18166277,193.56,193.55,0.03]
[1739701489998,13.34796277,193.56,193.55,0.03]
[1739701490197,8.18166277,193.56,193.55,0.03]
[1739701501017,13.34796277,193.56,193.55,0.03]
[1739701532536,14.34796277,193.56,193.55,0.03]
[1739701537751,14.34796277,193.56,193.55,0.03]
[1739701538848,13.34796277,193.56,193.55,0.03]
[1739701543261,8.18166277,193.56,193.55,0.03]
[1739701544555,13.34796277,193.56,193.55,0.03]
[1739701546658,14.34796277,193.56,193.55,0.03]
[1739701567287,6.1663,193.56,193.55,0.03]
[1739701567588,14.34796277,193.56,193.55,0.03]
[1739701573789,13.34796277,193.56,193.55,0.03]
[1739701578383,14.34796277,193.56,193.55,0.03]
[1739701579989,13.34796277,193.56,193.55,0.03]
[1739701580172,14.34796277,193.56,193.55,0.03]
[1739701580480,13.34796277,193.56,193.55,0.03]
[1739701584277,14.34796277,193.56,193.55,0.03]
[1739701584987,1.0,193.55,193.54,0.03]
[1739701585193,1.0,193.54,193.53,0.03]
[1739701585397,6.1668,193.54,193.53,0.03]
[1739701587093,14.34846277,193.54,193.53,0.03]
[1739701588392,13.34846277,193.54,193.5,0.03]
[1739701588694,28.18166277,193.51,193.5,0.03]
[1739701590371,33.34926277,193.51,193.5,0.03]
[1739701613040,78.99511385,193.51,193.47,0.063]
[1739701613186,8.18166277,193.48,193.47,0.063]
[1739701613586,13.35006277,193.48,193.47,0.063]
[1739701617004,8.18166277,193.48,193.47,0.063]
[1739701619523,13.35006277,193.48,193.47,0.063]
[1739701621125,8.18166277,193.48,193.47,0.063]
[1739701621694,13.35006277,193.48,193.47,0.063]
[1739701623102,8.18166277,193.48,193.47,0.063]
[1739701626124,13.35006277,193.48,193.47,0.063]
[1739701635551,8.18166277,193.48,193.47,0.063]
[1739701636818,0.063,193.5,193.47,0.063]
[1739701636819,8.18166277,193.49,193.47,0.063]
[1739701637534,8.18166277,193.48,193.47,0.063]
[1739701643412,8.18166277,193.49,193.47,0.063]
[1739701643740,8.24466277,193.5,193.47,0.063]
[1739701644343,8.18166277,193.49,193.47,0.063]
[1739701646327,8.24466277,193.5,193.47,0.063]
[1739701649039,8.18166277,193.49,193.47,0.063]
[1739701650446,0.063,193.5,193.47,94.77484853]
[1739701650627,0.063,193.5,193.49,13.41184853]
[1739701654456,0.063,193.5,193.49,94.71184853]
[1739701655953,0.063,193.5,193.49,81.3]
[1739701656251,8.24466277,193.5,193.49,81.3]
[1739701656451,0.063,193.5,193.49,94.71184853]
[1739701661555,0.063,193.5,193.49,94.74184853]
[1739701661732,0.063,193.5,193.49,99.91004853]
[1739701664650,8.24466277,193.5,193.49,81.33]
[1739701665867,0.063,193.5,193.49,81.33]
[1739701667738,0.063,193.5,193.49,99.91004853]
[1739701673082,0.063,193.5,193.49,244.36676024]
[1739701673244,0.063,193.5,193.49,243.5917113]
[1739701681151,0.063,193.5,193.49,250.1727113]
[1739701692692,0.063,193.53,193.5,14.41184853]
[1739701692868,0.063,193.53,193.52,21.5935113]
[1739701693067,0.063,193.53,193.52,238.3935113]
[1739701695595,0.063,193.53,193.52,243.5609113]
[1739701696069,0.0001,193.53,193.52,246.1808113]
[1739701701995,0.0001,193.53,193.52,247.1808113]
[1739701704994,0.0001,193.53,193.52,253.50180096]
[1739701709999,0.0001,193.56,193.55,21.0]
[1739701710187,0.0001,193.56,193.55,267.36271917]
[1739701710389,0.0001,193.56,193.55,266.5882113]
[1739701711591,0.0001,193.56,193.55,271.7548113]
[1739701714105,0.00848818,193.61,193.59,21.0]
[1739701714309,0.00848818,193.61,193.6,22.36791202]
[1739701717105,0.00848818,193.61,193.6,27.53311202]
[1739701717501,0.00848818,193.61,193.6,28.53311202]
[1739701718392,0.00848818,193.61,193.6,27.53311202]
[1739701718805,0.00848818,193.61,193.6,28.53311202]
[1739701719913,0.00848818,193.61,193.6,245.33311202]
[1739701720114,0.00848818,193.61,193.6,243.5587113]
[1739701728625,0.00848818,193.61,193.6,244.5587113]
[1739701740611,8.818e-05,193.62,193.61,14.41184853]
[1739701740929,8.818e-05,193.62,193.61,23.36781958]
[1739701743636,8.818e-05,193.62,193.61,28.53281958]
[1739701746639,8.818e-05,193.62,193.61,245.33281958]
[1739701746841,8.818e-05,193.62,193.61,244.5885113]
[1739701761152,8.818e-05,193.62,193.61,236.40684853]
[1739701771263,0.063,193.68,193.66,1.0]
[1739701771481,0.063,193.68,193.67,23.36765132]
[1739701771768,0.063,193.68,193.67,240.16765132]
[1739701771940,0.063,193.68,193.67,239.3935113]
[1739701772144,0.063,193.7,193.69,13.41184853]
[1739701772344,0.063,193.7,193.69,27.53038697]
[1739701772560,0.063,193.7,193.69,244.33038697]
[1739701772767,0.063,193.7,193.69,243.5563113]
[1739701781969,0.0001,193.7,193.69,244.5563113]
[1739701785166,0.063,193.73,193.71,18.57414853]
[1739701785373,0.063,193.73,193.72,21.5935113]
[1739701786378,0.063,193.73,193.72,26.7555113]
[1739701786578,0.063,193.73,193.72,27.52947028]
[1739701789076,1.5847,193.73,193.72,0.77395898]
[1739701789274,20.0,193.7,193.65,7.97835929]
[1739701789583,20.0,193.66,193.65,7.97835929]
[1739701790362,21.0449,193.66,193.65,7.97835929]
[1739701790691,5.1639,193.65,193.61,0.03]
[1739701790873,13.34556277,193.65,193.61,0.03]
[1739701791469,8.18166277,193.62,193.61,0.03]
[1739701795995,8.18166277,193.62,193.61,0.03]
[1739701796492,8.18166277,193.63,193.61,0.03]
[1739701796693,8.18166277,193.65,193.61,0.03]
[1739701796909,9.22656277,193.66,193.61,0.03]
[1739701797194,1.0449,193.66,193.61,0.03]
[1739701797590,9.22656277,193.66,193.62,13.41184853]
[1739701799174,9.22656277,193.66,193.62,5.1647]
[1739701800001,9.22656277,193.66,193.62,221.9646]
[1739701801090,8.18166277,193.65,193.62,221.9646]
[1739701801491,8.18166277,193.65,193.62,216.7999]
[1739701802402,8.18166277,193.65,193.62,221.9646]
[1739701802798,8.18166277,193.65,193.62,216.7999]
[1739701803102,8.18166277,193.63,193.62,216.7999]
[1739701804296,13.34606277,193.63,193.62,81.2999]
[1739701806698,13.34606277,193.63,193.62,81.3629]
[1739701809003,13.34606277,193.63,193.62,0.063]
[1739701815006,8.18166277,193.63,193.62,0.063]
[1739701815695,8.18166277,193.64,193.62,81.3629]
[1739701815901,7.41285898,193.68,193.62,81.3629]
[1739701815902,8.18166277,193.63,193.62,81.3629]
[1739701819209,13.34606277,193.63,193.62,81.3629]
[1739701819411,13.34606277,193.63,193.62,0.063]
[1739701820502,8.18166277,193.63,193.62,0.063]
[1739701825111,8.18166277,193.65,193.62,0.063]
[1739701825308,8.18166277,193.65,193.62,216.8629]
[1739701826712,0.77395898,193.7,193.62,216.8629]
[1739701826713,8.18166277,193.64,193.62,216.8629]
[1739701827221,8.18166277,193.63,193.62,216.8629]
[1739701828924,13.34606277,193.63,193.62,216.8629]
[1739701829808,13.34606277,193.63,193.62,81.3629]
[1739701830013,8.18166277,193.63,193.62,81.3629]
[1739701831525,13.34606277,193.63,193.62,81.3629]
[1739701832230,8.18166277,193.63,193.62,81.3629]
[1739701837033,13.34606277,193.63,193.62,81.3629]
[1739701839938,8.18166277,193.63,193.62,81.3629]
[1739701840922,13.34606277,193.63,193.62,81.3629]
[1739701847821,8.18166277,193.65,193.62,81.3629]
[1739701848024,13.34566277,193.65,193.62,81.3629]
[1739701848334,28.18166277,193.63,193.62,81.3629]
[1739701852641,8.18166277,193.63,193.62,81.3629]
[1739701855053,8.18166277,193.66,193.62,222.0276]
[1739701855357,8.18166277,193.65,193.62,216.8629]
[1739701856842,8.18166277,193.64,193.62,216.8629]
[1739701858443,8.18166277,193.63,193.62,216.8629]
[1739701859349,8.18166277,193.63,193.62,81.3629]
[1739701859556,13.34606277,193.63,193.62,81.3629]
[1739701859857,13.34606277,193.63,193.62,0.063]
[1739701864533,14.12002175,193.63,193.61,0.03]
[1739701864735,8.18166277,193.62,193.61,0.03]
[1739701865530,8.18166277,193.62,193.59,0.03]
[1739701865531,20.0,193.6,193.59,0.03]
[1739701865727,61.68227283,193.6,193.59,0.03]
[1739701865937,62.68227283,193.6,193.59,0.03]
[1739701866352,62.68227283,193.6,193.55,81.3299]
[1739701866550,62.68227283,193.6,193.55,0.03]
[1739701866551,28.18166277,193.56,193.55,0.03]
[1739701868659,20.0,193.56,193.55,0.03]
[1739701868830,8.18166277,193.57,193.55,81.3299]
[1739701869029,8.18166277,193.57,193.55,99.06456566]
[1739701870346,8.18166277,193.57,193.55,81.3299]
[1739701871461,8.18166277,193.56,193.55,81.3299]
[1739701871839,14.12459396,193.56,193.55,81.3299]
[1739701873761,5.94293119,193.56,193.55,81.3299]
[1739701874842,4.47323951,193.56,193.55,221.9965]
[1739701875242,4.47323951,193.56,193.55,223.5243]
[1739701876567,3.35904806,193.56,193.55,223.5243]
[1739701877741,3.35904806,193.56,193.55,243.25414853]
[1739701877943,3.35904806,193.56,193.55,251.4358113]
[1739701878147,1.29194156,193.56,193.55,251.4358113]
[1739701878754,1.29194156,193.56,193.55,243.25414853]
[1739701879866,2.0671065,193.6,193.56,13.41184853]
[1739701880065,2.0671065,193.6,193.56,216.7999]
[1739701880271,8.18166277,193.59,193.56,216.7999]
[1739701880740,2.0671065,193.6,193.56,216.7999]
[1739701880741,10.24876927,193.6,193.56,216.7999]
[1739701881156,2.0671065,193.6,193.56,216.7999]
[1739701881461,1.29171056,193.58,193.56,216.7999]
[1739701881844,1.29171056,193.58,193.56,224.98156277]
[1739701882041,1.29171056,193.58,193.57,18.57784853]
[1739701882971,1.29171056,193.58,193.57,26.7595113]
[1739701883163,2.06636661,193.63,193.57,26.7595113]
[1739701884667,1.29144068,193.62,193.57,26.7595113]
[1739701885440,1.29144068,193.62,193.57,18.57784853]
[1739701885853,1.29144068,193.61,193.57,18.57784853]
[1739701886046,1.29144068,193.61,193.57,235.37774853]
[1739701886768,1.29144068,193.61,193.57,221.9659]
[1739701886970,9.47310345,193.61,193.57,221.9659]
[1739701887163,1.29144068,193.6,193.57,221.9659]
[1739701888870,8.18166277,193.63,193.57,221.9659]
[1739701889656,0.063,193.61,193.57,221.9659]
[1739701890776,0.063,193.61,193.58,21.5935113]
[1739701891287,0.063,193.61,193.58,13.41184853]
[1739701892380,0.063,193.61,193.58,18.57754853]
[1739701893090,0.063,193.61,193.58,216.7999]
[1739701893383,8.18166277,193.6,193.58,216.7999]
[1739701893695,8.18166277,193.59,193.58,81.2999]
[1739701894578,13.34716277,193.59,193.58,81.2999]
[1739701894865,14.63901777,193.59,193.58,81.2999]
[1739701896975,9.47351777,193.59,193.58,81.2999]
[1739701899182,1.291855,193.59,193.58,81.2999]
[1739701900980,9.47351777,193.59,193.58,81.2999]
[1739701901686,9.47351777,193.59,193.58,81.3299]
[1739701909399,1.291855,193.59,193.58,81.3299]
[1739701911491,9.47351777,193.59,193.58,81.3299]
[1739701911699,14.63901777,193.59,193.58,81.3299]
[1739701912392,9.47351777,193.59,193.58,81.3299]
[1739701913400,9.53651777,193.59,193.58,81.3299]
[1739701920080,1.354855,193.59,193.58,81.3299]
[1739701920406,1.354855,193.59,193.58,86.4957]
[1739701921202,1.354855,193.59,193.58,88.0168]
[1739701921972,0.063,193.59,193.58,88.0168]
[1739701922187,0.063,193.59,193.58,245.1103113]
[1739701926914,0.063,193.59,193.58,239.9445113]
[1739701928014,0.063,193.59,193.58,245.1103113]
[1739701928613,0.063,193.59,193.58,239.9445113]
[1739701928803,0.063,193.59,193.58,231.76284853]
[1739701929690,0.063,193.59,193.58,218.351]
[1739701929904,0.063,193.59,193.58,216.8299]
[1739701930815,0.0126126,193.59,193.58,216.8299]
[1739701936028,0.0126126,193.59,193.58,221.9957]
[1739701936326,0.0126126,193.59,193.58,230.17736277]
[1739701937425,0.0126126,193.59,193.58,243.5892113]
[1739701938122,0.0126126,193.59,193.58,235.40754853]
[1739701938329,0.0126126,193.59,193.58,230.24174853]
[1739701939723,0.0126126,193.59,193.58,235.40754853]
[1739701939918,0.0126126,193.59,193.58,230.24174853]
[1739701943605,0.0126126,193.59,193.58,235.40754853]
[1739701947224,0.0126126,193.59,193.58,243.5892113]
[1739701950141,0.0126126,193.59,193.58,235.40754853]
[1739701951412,0.0126126,193.59,193.58,243.5892113]
[1739701954123,0.0126126,193.59,193.58,235.40754853]
[1739701954921,0.0126126,193.59,193.58,230.24174853]
[1739701955414,0.0126126,193.59,193.58,216.8299]
[1739701956324,8.19427537,193.59,193.58,216.8299]
[1739701956821,0.0126126,193.59,193.58,216.8299]
[1739701966123,8.19427537,193.59,193.58,216.8299]
[1739701971850,0.0126126,193.59,193.58,216.8299]
[1739702000494,0.0126126,193.59,193.58,221.9957]
[1739702002788,0.0126126,193.59,193.58,216.8299]
[1739702005107,0.0126126,193.59,193.58,221.9957]
[1739702009006,0.0126126,193.59,193.58,216.8299]
[1739702009702,0.0126126,193.59,193.58,226.51446277]
[1739702012008,0.0126126,193.59,193.58,239.9263113]
[1739702012310,0.0126126,193.59,193.58,247.5399113]
[1739702012512,0.0126126,193.59,193.58,246.5399113]
[1739702013502,0.0126126,193.59,193.58,247.5399113]
[1739702015490,0.0126126,193.59,193.58,248.5399113]
[1739702016008,0.0126126,193.59,193.58,247.5399113]
[1739702016205,0.0126126,193.59,193.58,248.5399113]
[1739702016811,0.063,193.61,193.6,13.41184853]
[1739702017012,0.063,193.61,193.6,238.3807987]
[1739702023316,0.063,193.61,193.6,230.19913593]
[1739702024015,0.063,193.61,193.6,216.7872874]
[1739702024522,8.24466277,193.61,193.6,216.7872874]
[1739702025301,8.24466277,193.61,193.6,81.2872874]
[1739702027826,20.0,193.59,193.58,0.03]
[1739702028216,1.0,193.59,193.58,0.03]
[1739702028611,2.29319913,193.59,193.58,0.03]
[1739702028816,3.29319913,193.59,193.58,0.03]
[1739702029219,15.52364001,193.59,193.58,0.03]
[1739702029421,16.52364001,193.59,193.58,0.03]
[1739702029634,15.23044088,193.59,193.58,0.03]
[1739702030523,15.23044088,193.59,193.55,0.03]
[1739702030828,8.18166277,193.56,193.55,0.03]
[1739702031706,20.0,193.53,193.52,25.70099886]
[1739702031907,28.18166277,193.53,193.52,0.03]
[1739702033226,29.18166277,193.53,193.52,0.03]
[1739702033407,8.18166277,193.5,193.49,25.70099886]
[1739702041735,8.18166277,193.5,193.49,25.70099886]
[1739702052021,8.18166277,193.5,193.49,0.03]
[1739702052541,40.90831385,193.5,193.49,0.03]
[1739702056153,8.18166277,193.5,193.49,0.03]
[1739702056321,40.90831385,193.5,193.49,0.03]
[1739702058262,20.0,193.48,193.47,0.063]
[1739702058432,28.95562175,193.48,193.47,0.063]
[1739702060343,34.12402175,193.48,193.47,0.063]
[1739702061426,33.35006277,193.48,193.47,0.063]
[1739702064636,8.18166277,193.48,193.47,25.73399886]
[1739702066149,13.35006277,193.48,193.47,25.73399886]
[1739702069646,13.35006277,193.48,193.47,0.063]
[1739702077463,20.0,193.46,193.45,0.03]
[1739702077761,34.12462175,193.46,193.45,0.03]
[1739702079172,35.12462175,193.46,193.44,0.03]
[1739702079364,8.18166277,193.45,193.44,0.03]
[1739702080065,13.35086277,193.45,193.44,0.03]
[1739702098776,13.41386277,193.45,193.44,0.03]
[1739702102604,8.24466277,193.45,193.44,0.03]
[1739702103620,13.41386277,193.45,193.44,0.03]
[1739702108788,8.24466277,193.45,193.44,0.03]
[1739702110425,8.24466277,193.45,193.44,8.184]
[1739702110986,0.063,193.45,193.44,8.184]
[1739702111187,0.063,193.45,193.44,33.85499886]
[1739702113405,8.24466277,193.45,193.44,33.85499886]
[1739702116109,8.24466277,193.45,193.44,27.32759886]
[1739702116317,13.41386277,193.45,193.44,0.03]
[1739702119023,8.24466277,193.45,193.44,0.03]
[1739702120716,8.24466277,193.45,193.44,25.70099886]
[1739702124324,13.41386277,193.45,193.44,25.70099886]
[1739702126621,13.41386277,193.45,193.44,0.03]
[1739702127208,14.18782175,193.45,193.44,0.03]
[1739702128415,13.41386277,193.45,193.44,0.03]
[1739702134435,14.18782175,193.45,193.44,0.03]
[1739702138220,28.59967028,193.45,193.43,0.03]
[1739702138424,8.18166277,193.44,193.43,0.03]
[1739702139350,13.35116277,193.44,193.43,0.03]
[1739702145049,20.0,193.41,193.39,0.03]
[1739702145255,8.95562175,193.4,193.39,0.03]
[1739702145946,8.18166277,193.4,193.39,0.03]
[1739702149956,13.35226277,193.4,193.39,0.03]
[1739702153977,8.18166277,193.4,193.39,0.03]
[1739702154554,8.18166277,193.43,193.4,1.5025]
[1739702154895,8.18166277,193.43,193.4,27.17349886]
[1739702155572,8.18166277,193.41,193.4,27.17349886]
[1739702156654,8.18166277,193.42,193.4,27.17349886]
[1739702157960,0.063,193.41,193.4,27.17349886]
[1739702159478,0.063,193.41,193.4,32.34409886]
[1739702160183,0.063,193.45,193.4,176.02576163]
[1739702160383,0.063,193.45,193.43,7.6887]
[1739702161364,0.063,193.45,193.43,12.8583]
[1739702165281,0.063,193.45,193.43,174.02929886]
[1739702165482,0.063,193.45,193.43,168.85969886]
[1739702166672,8.24466277,193.45,193.43,168.85969886]
[1739702167284,0.063,193.45,193.43,168.85969886]
[1739702170192,8.24466277,193.45,193.43,161.17099886]
[1739702170399,8.18166277,193.44,193.43,161.17099886]
[1739702170692,8.24466277,193.45,193.43,161.17099886]
[1739702170890,0.063,193.45,193.43,161.17099886]
[1739702171284,0.063,193.45,193.43,25.67099886]
[1739702173876,0.063,193.45,193.43,30.84069886]
[1739702174996,0.063,193.45,193.43,25.67099886]
[1739702178099,8.18166277,193.44,193.43,25.67099886]
[1739702182019,0.063,193.45,193.43,25.67099886]
[1739702185327,8.24466277,193.45,193.43,25.67099886]
[1739702187612,13.41396277,193.45,193.43,25.67099886]
[1739702201517,0.063,193.45,193.43,25.67099886]
[1739702214828,0.063,193.45,193.43,30.84079886]
[1739702220840,0.063,193.45,193.43,25.67099886]
[1739702221545,0.063,193.45,193.43,30.84079886]
[1739702221941,0.063,193.45,193.43,39.02246163]
[1739702222338,0.063,193.45,193.43,30.84079886]
[1739702224643,0.063,193.45,193.43,166.34079886]
[1739702241564,0.063,193.45,193.44,21.5935113]
[1739702241744,0.063,193.45,193.44,191.46381016]
[1739702242455,0.063,193.45,193.44,196.63331016]
[1739702243170,0.063,193.45,193.44,195.63331016]
[1739702243867,0.063,193.45,193.44,196.63331016]
[1739702244169,0.063,193.45,193.44,25.67099886]
[1739702244371,8.24466277,193.45,193.44,25.67099886]
[1739702248477,8.24466277,193.45,193.41,25.70099886]
[1739702289017,8.18166277,193.43,193.41,0.03]
[1739702294324,0.063,193.45,193.41,0.03]
[1739702294905,8.24466277,193.45,193.41,0.03]
[1739702299033,8.24466277,193.45,193.41,30.87119886]
[1739702300332,0.063,193.45,193.41,30.87119886]
[1739702303009,0.063,193.45,193.41,39.05286163]
[1739702303331,0.063,193.45,193.41,30.87119886]
[1739702317831,0.063,193.45,193.44,29.1007113]
[1739702320252,0.063,193.45,193.44,34.2702113]
[1739702320447,0.063,193.45,193.44,12.6767]
[1739702320654,0.063,193.45,193.43,5.1698]
[1739702321647,0.063,193.45,193.42,13.41184853]
[1739702321831,0.063,193.45,193.42,18.58184853]
[1739702322856,0.063,193.45,193.42,44.25284739]
[1739702324539,0.063,193.45,193.42,30.84099886]
[1739702324847,0.063,193.45,193.42,25.67099886]
[1739702326954,0.063,193.45,193.42,30.84089886]
[1739702333855,0.063,193.45,193.42,25.67099886]
[1739702334054,8.18166277,193.43,193.42,25.67099886]
[1739702335174,13.35146277,193.43,193.41,0.03]
[1739702335338,8.18166277,193.42,193.41,0.03]
[1739702337185,13.35166277,193.42,193.41,0.03]
[1739702345547,13.41466277,193.42,193.41,0.03]
[1739702356576,8.24466277,193.42,193.41,0.03]
[1739702356875,0.063,193.42,193.41,0.03]
[1739702373980,0.063,193.42,193.41,1.5483]
[1739702374597,0.063,193.42,193.41,14.96014853]
[1739702374806,0.063,193.42,193.41,20.13044853]
[1739702377206,0.063,193.42,193.41,14.96014853]
[1739702377495,0.063,193.42,193.41,1.5483]
[1739702377697,8.24466277,193.42,193.41,0.03]
[1739702378286,13.41466277,193.42,193.41,0.03]
[1739702384702,20.0,193.4,193.39,0.03]
[1739702384877,8.18166277,193.4,193.39,0.03]
[1739702386400,13.35226277,193.4,193.39,0.03]
[1739702390883,8.18166277,193.4,193.39,0.03]
[1739702391704,13.35226277,193.4,193.39,0.03]
[1739702393817,8.18166277,193.4,193.39,0.03]
[1739702395087,8.24466277,193.41,193.39,0.03]
[1739702399143,8.18166277,193.4,193.39,0.03]
[1739702400830,0.063,193.41,193.39,0.03]
[1739702401218,0.063,193.41,193.39,13.44184853]
[1739702402343,0.063,193.41,193.39,0.03]
[1739702407645,8.24466277,193.41,193.39,0.03]
[1739702410135,8.18166277,193.4,193.39,0.03]
[1739702415256,13.35226277,193.4,193.39,0.03]
[1739702421467,8.18166277,193.4,193.39,0.03]
[1739702423457,90.34466277,193.41,193.39,0.03]
[1739702423656,8.18166277,193.4,193.39,0.03]
[1739702432972,0.063,193.41,193.39,0.03]
[1739702433786,8.24466277,193.41,193.39,0.03]
[1739702436793,0.063,193.41,193.39,0.03]
[1739702438375,8.24466277,193.41,193.39,0.03]
[1739702453085,13.41496277,193.41,193.39,0.03]
[1739702453289,8.18166277,193.4,193.39,0.03]
[1739702454109,13.35226277,193.4,193.39,0.03]
[1739702461406,8.18166277,193.4,193.39,0.03]
[1739702461614,8.24466277,193.41,193.39,0.03]
[1739702462120,8.18166277,193.4,193.39,0.03]
[1739702462708,8.24466277,193.41,193.39,0.03]
[1739702463010,8.18166277,193.4,193.39,0.03]
[1739702463825,8.24466277,193.41,193.39,0.03]
[1739702465221,0.063,193.41,193.39,0.03]
[1739702468317,8.24466277,193.41,193.39,0.03]
[1739702468714,0.063,193.41,193.39,0.03]
[1739702469298,8.24466277,193.41,193.39,0.03]
[1739702472703,0.063,193.41,193.39,0.03]
[1739702474837,8.24466277,193.41,193.39,0.03]
[1739702479133,0.063,193.41,193.39,0.03]
[1739702479331,8.24466277,193.41,193.39,0.03]
[1739702479536,8.18166277,193.4,193.39,0.03]
[1739702481043,13.35226277,193.4,193.39,0.03]
[1739702482041,8.18166277,193.4,193.39,0.03]
[1739702482341,8.24466277,193.41,193.39,0.03]
[1739702485245,8.18166277,193.4,193.39,0.03]
[1739702487049,13.35226277,193.4,193.39,0.03]
[1739702488648,8.18166277,193.4,193.39,0.03]
[1739702490530,0.063,193.41,193.39,0.03]
[1739702491573,8.24466277,193.41,193.39,0.03]
[1739702503955,8.18166277,193.4,193.39,0.03]
[1739702507063,0.063,193.41,193.39,0.03]
[1739702518390,0.063,193.41,193.39,5.2008]
[1739702520487,0.063,193.41,193.39,0.03]
[1739702529311,8.24466277,193.41,193.39,0.03]
[1739702530594,13.41496277,193.41,193.39,0.03]
[1739702530769,8.24466277,193.41,193.39,0.03]
[1739702530974,0.063,193.41,193.39,0.03]
[1739702538192,0.063,193.41,193.39,0.03]
[1739702545622,0.063,193.41,193.4,13.41184853]
[1739702546697,0.063,193.41,193.4,18.58244853]
[1739702548494,0.063,193.41,193.4,26.7641113]
[1739702548692,0.063,193.41,193.4,18.58244853]
[1739702551323,0.063,193.41,193.4,26.7641113]
[1739702551501,0.063,193.41,193.4,52.43511016]
[1739702556465,0.063,193.41,193.39,0.03]
[1739702564377,8.24466277,193.41,193.39,0.03]
[1739702567457,13.41496277,193.41,193.39,0.03]
[1739702569675,8.18166277,193.4,193.39,0.03]
[1739702571768,13.35226277,193.4,193.39,0.03]
[1739702576690,8.18166277,193.4,193.39,0.03]
[1739702583185,13.35226277,193.4,193.39,0.03]
[1739702587271,8.18166277,193.4,193.39,0.03]
[1739702588941,0.063,193.41,193.39,0.03]
[1739702598884,0.063,193.41,193.39,21.6235113]
[1739702599893,0.063,193.41,193.39,13.44184853]
[1739702600904,0.063,193.41,193.4,5.1706]
[1739702604913,0.063,193.41,193.4,30.84159886]
[1739702606387,0.063,193.41,193.4,44.25344739]
[1739702606801,8.24466277,193.41,193.4,25.67099886]
[1739702608096,13.41506277,193.41,193.39,0.03]
[1739702608294,8.18166277,193.4,193.39,0.03]
[1739702613288,0.063,193.41,193.39,0.03]
[1739702615301,8.18166277,193.4,193.39,0.03]
[1739702620727,8.24466277,193.41,193.39,0.03]
[1739702622524,0.063,193.41,193.39,0.03]
[1739702629324,8.24466277,193.41,193.39,0.03]
[1739702630430,13.41506277,193.41,193.39,0.03]
[1739702637132,8.24466277,193.41,193.39,0.03]
[1739702637325,13.41496277,193.41,193.39,0.03]
[1739702641453,8.18166277,193.4,193.39,0.03]
[1739702641640,13.41496277,193.41,193.39,0.03]
[1739702645944,8.18166277,193.4,193.39,0.03]
[1739702647957,13.35226277,193.4,193.39,0.03]
[1739702652555,95.45226277,193.4,193.39,0.03]
[1739702657069,46.07891385,193.4,193.38,0.03]
[1739702657267,41.68227283,193.39,193.38,0.03]
[1739702658170,46.85307283,193.39,193.38,0.03]
[1739702658840,20.0,193.36,193.29,0.03]
[1739702659038,8.18166277,193.32,193.29,0.03]
[1739702659453,0.77395898,193.35,193.29,0.03]
[1739702659454,8.18166277,193.31,193.29,0.03]
[1739702661447,8.18166277,193.3,193.29,0.03]
[1739702662582,8.18166277,193.31,193.29,0.03]
[1739702663767,8.18166277,193.34,193.29,0.03]
[1739702664260,8.18166277,193.33,193.29,0.03]
[1739702664769,8.18166277,193.32,193.29,0.03]
[1739702665075,8.18166277,193.31,193.29,0.03]
[1739702669062,8.18166277,193.32,193.29,0.03]
[1739702669263,8.18166277,193.33,193.29,0.03]
[1739702669455,20.0,193.33,193.29,0.03]
[1739702673648,8.18166277,193.32,193.29,0.03]
[1739702676865,28.18166277,193.33,193.29,0.03]
[1739702680074,20.0,193.33,193.29,0.03]
[1739702680371,20.0,193.33,193.29,13.44184853]
[1739702682170,20.0,193.33,193.29,39.11284739]
[1739702682380,20.0,193.33,193.29,44.28624739]
[1739702685055,20.0,193.33,193.29,25.70099886]